bitfinex/quotes_SOLUSD_20250316
["timestamp","ask_amount","ask_price","bid_price","bid_amount"]
[1742092393279,0.14611819,135.3,135.29,37.89378575]
[1742092393473,0.14611819,135.3,135.29,61.61174836]
[1742092393862,0.14611819,135.3,135.29,62.71998329]
[1742092394386,1.819e-05,135.3,135.29,190.48325663]
[1742092394584,1.819e-05,135.3,135.29,189.3750217]
[1742092395179,1.819e-05,135.3,135.29,193.16945297]
[1742092395777,1.819e-05,135.3,135.29,174.51980411]
[1742092396082,0.16208828,135.31,135.3,0.14216157]
[1742092396386,8.828e-05,135.31,135.3,95.89158809]
[1742092399289,8.828e-05,135.31,135.3,84.63283923]
[1742092399488,8.828e-05,135.31,135.3,83.52477284]
[1742092399670,8.828e-05,135.31,135.3,84.63293125]
[1742092400175,8.828e-05,135.31,135.3,165.33293125]
[1742092400382,8.828e-05,135.31,135.3,164.22477284]
[1742092402188,8.828e-05,135.31,135.3,164.28777284]
[1742092402387,0.03008828,135.31,135.3,164.28777284]
[1742092402873,0.03008828,135.31,135.3,103.60813308]
[1742092403580,0.03008828,135.31,135.3,22.90813308]
[1742092403785,0.03008828,135.31,135.3,15.23290994]
[1742092405579,0.03008828,135.31,135.3,22.62380994]
[1742092406887,0.03008828,135.31,135.3,15.23290994]
[1742092407475,0.03008828,135.31,135.3,83.58777284]
[1742092407787,0.13631081,135.32,135.3,84.69590478]
[1742092407986,0.13631081,135.32,135.31,15.16990994]
[1742092408380,0.13631081,135.32,135.31,15.45423308]
[1742092408770,0.13631081,135.32,135.31,96.15423308]
[1742092409393,0.13631081,135.32,135.31,97.26229149]
[1742092409888,0.04161202,135.34,135.32,0.28432314]
[1742092410080,0.13792126,135.35,135.34,0.28432314]
[1742092410386,0.13792126,135.35,135.34,96.15423308]
[1742092410587,2.126e-05,135.35,135.34,114.80388194]
[1742092410791,2.126e-05,135.35,135.34,175.4835217]
[1742092410967,9.849e-05,135.36,135.34,175.4835217]
[1742092411172,9.849e-05,135.36,135.35,76.13387284]
[1742092411687,0.14305319,135.37,135.35,76.13387284]
[1742092411688,5.168e-05,135.37,135.36,0.28432314]
[1742092411892,0.03,135.4,135.37,20.0]
[1742092412093,0.03,135.4,135.37,42.55700994]
[1742092413394,0.28575802,135.38,135.37,42.55700994]
[1742092414366,0.14965954,135.38,135.37,15.16990994]
[1742092414568,0.14965954,135.38,135.36,15.16990994]
[1742092414782,0.14965954,135.38,135.35,15.45423308]
[1742092415373,0.14965954,135.38,135.35,15.16990994]
[1742092415579,0.14965954,135.38,135.35,15.23290994]
[1742092415792,0.14965954,135.38,135.36,15.16990994]
[1742092416002,0.03,135.37,135.36,15.16990994]
[1742092416184,0.03,135.37,135.35,15.23290994]
[1742092417194,0.03,135.37,135.35,0.063]
[1742092417393,15.16990994,135.36,135.35,0.063]
[1742092417793,15.19990994,135.37,135.35,0.063]
[1742092418101,22.58740994,135.37,135.35,0.063]
[1742092418306,31.12764812,135.37,135.35,0.063]
[1742092418733,23.71014812,135.36,135.35,0.063]
[1742092419005,41.58279698,135.36,135.35,0.063]
[1742092420100,48.97049698,135.36,135.35,0.063]
[1742092420606,18.64964886,135.34,135.3,0.063]
[1742092420773,23.71014812,135.33,135.3,0.063]
[1742092420979,42.35979698,135.34,135.3,0.063]
[1742092421285,41.85979698,135.34,135.3,0.063]
[1742092421488,23.71014812,135.33,135.3,0.063]
[1742092421880,41.85979698,135.34,135.3,0.063]
[1742092422978,32.75454812,135.35,135.3,23.77314812]
[1742092423183,25.36614812,135.35,135.3,23.77314812]
[1742092423893,32.75444812,135.35,135.3,23.77314812]
[1742092424082,7.3883,135.35,135.31,23.71014812]
[1742092425402,37.24874812,135.36,135.31,31.10044812]
[1742092427783,37.24874812,135.36,135.31,31.16344812]
[1742092432588,31.09834812,135.35,135.31,23.77314812]
[1742092432785,31.09834812,135.35,135.31,0.063]
[1742092433285,0.15044187,135.32,135.31,0.063]
[1742092436129,31.25038999,135.32,135.31,0.063]
[1742092437386,7.54024187,135.32,135.31,0.063]
[1742092438005,31.25038999,135.32,135.31,0.063]
[1742092440290,22.72461411,135.32,135.31,0.063]
[1742092442404,7.54024187,135.32,135.31,0.063]
[1742092442595,0.15044187,135.32,135.31,0.063]
[1742092444698,7.54024187,135.32,135.31,0.063]
[1742092447327,0.15044187,135.32,135.31,0.063]
[1742092449813,7.54024187,135.32,135.31,0.063]
[1742092450327,0.15044187,135.32,135.31,0.063]
[1742092453329,26.34831126,135.32,135.31,0.063]
[1742092453508,41.5326835,135.32,135.31,0.063]
[1742092454331,41.38224163,135.32,135.31,0.063]
[1742092458728,18.80806939,135.32,135.31,0.063]
[1742092460044,41.38224163,135.32,135.31,0.063]
[1742092460257,33.99244163,135.32,135.31,0.063]
[1742092460432,41.38224163,135.32,135.31,0.063]
[1742092462452,40.88224163,135.32,135.31,0.063]
[1742092463245,33.49244163,135.32,135.31,0.063]
[1742092466651,0.15887067,135.33,135.31,0.063]
[1742092466822,18.80851953,135.33,135.31,0.063]
[1742092467947,0.15887067,135.33,135.31,0.063]
[1742092472245,41.38229177,135.33,135.31,0.063]
[1742092472446,15.18437224,135.32,135.31,0.063]
[1742092473351,15.33258068,135.32,135.31,0.063]
[1742092473727,0.14820844,135.32,135.31,0.063]
[1742092478856,22.72238068,135.32,135.31,0.063]
[1742092480750,41.37202954,135.32,135.31,0.063]
[1742092481258,0.14820844,135.32,135.31,0.063]
[1742092481620,15.33258068,135.32,135.31,0.063]
[1742092481821,22.72238068,135.32,135.31,0.063]
[1742092484557,0.14820844,135.32,135.31,0.063]
[1742092484852,0.14820844,135.32,135.31,15.24737224]
[1742092485353,0.14820844,135.32,135.31,22.63777224]
[1742092493359,0.29304425,135.32,135.31,22.63777224]
[1742092494363,0.14483581,135.32,135.31,22.63777224]
[1742092499644,0.17483581,135.32,135.31,22.63777224]
[1742092502164,0.17483581,135.32,135.31,0.063]
[1742092505952,49.17225691,135.32,135.31,0.063]
[1742092506965,49.45658005,135.32,135.31,0.063]
[1742092507167,49.45658005,135.32,135.25,0.063]
[1742092507168,101.34964886,135.31,135.25,0.063]
[1742092507345,33.8340211,135.26,135.25,0.063]
[1742092508571,41.2271211,135.26,135.25,0.063]
[1742092509370,15.18437224,135.26,135.25,0.063]
[1742092510457,82.2,135.3,135.25,0.063]
[1742092510771,15.18437224,135.3,135.25,15.24737224]
[1742092511671,15.18437224,135.3,135.26,7.3931]
[1742092513362,0.14482826,135.27,135.26,22.57747224]
[1742092518188,0.14482826,135.27,135.26,24.38729538]
[1742092518859,0.14482826,135.27,135.26,8.9186]
[1742092519298,0.14482826,135.27,135.26,7.3931]
[1742092519796,0.14482826,135.27,135.25,7.4565]
[1742092521988,0.14482826,135.27,135.25,22.64087224]
[1742092524779,0.14482826,135.27,135.25,7.4565]
[1742092526272,15.18437224,135.26,135.25,0.063]
[1742092528492,22.57747224,135.26,135.25,0.063]
[1742092528964,47.2992211,135.26,135.25,0.063]
[1742092530570,48.9224211,135.26,135.25,0.063]
[1742092532482,101.96461006,135.26,135.25,0.0001]
[1742092532688,0.14482826,135.27,135.25,15.18447224]
[1742092532986,0.14482826,135.27,135.26,15.18437224]
[1742092533490,0.14730243,135.26,135.25,0.0001]
[1742092533990,0.14730243,135.26,135.25,15.18447224]
[1742092534379,0.14730243,135.26,135.25,23.73323696]
[1742092534569,0.14730243,135.26,135.25,31.4112601]
[1742092536877,0.17730243,135.26,135.25,31.4112601]
[1742092542277,0.17730243,135.26,135.25,31.12693696]
[1742092547990,0.17730243,135.26,135.25,0.0001]
[1742092551700,7.57040243,135.26,135.25,0.0001]
[1742092552678,31.30353939,135.26,135.25,0.0001]
[1742092553180,0.17730243,135.26,135.25,0.0001]
[1742092553385,0.32197542,135.26,135.25,0.0001]
[1742092554292,7.56777299,135.26,135.25,0.0001]
[1742092554498,31.30090995,135.26,135.25,0.0001]
[1742092555305,23.90780995,135.26,135.25,0.0001]
[1742092556333,31.30090995,135.26,135.25,0.0001]
[1742092558292,22.76567624,135.26,135.25,0.0001]
[1742092560988,41.4153251,135.26,135.25,0.0001]
[1742092563505,0.17467299,135.26,135.25,0.0001]
[1742092566228,0.17467299,135.26,135.25,15.19800325]
[1742092566517,0.17467299,135.26,135.25,15.48232639]
[1742092568119,0.17467299,135.26,135.25,22.87602639]
[1742092568312,0.17467299,135.26,135.25,31.40226468]
[1742092568713,0.17467299,135.26,135.25,50.05191354]
[1742092569115,7.299e-05,135.26,135.25,50.05191354]
[1742092572218,1.988e-05,135.27,135.25,130.75191354]
[1742092572410,1.988e-05,135.27,135.26,49.15811354]
[1742092572612,1.988e-05,135.27,135.26,57.6596903]
[1742092572810,1.988e-05,135.27,135.26,59.3137903]
[1742092573207,6.044e-05,135.28,135.26,59.3137903]
[1742092573418,8.787e-05,135.29,135.28,18.64964886]
[1742092573624,8.787e-05,135.29,135.28,42.3737904]
[1742092574906,8.787e-05,135.29,135.28,49.7657904]
[1742092576018,0.1909525,135.32,135.31,40.588072]
[1742092576019,5.25e-05,135.32,135.31,40.588072]
[1742092576230,0.1587501,135.36,135.32,18.933972]
[1742092576404,0.1587501,135.36,135.32,23.72414154]
[1742092576805,0.1587501,135.36,135.33,31.11344154]
[1742092577420,0.1587501,135.36,135.34,23.72414154]
[1742092578509,0.1587501,135.36,135.35,23.72414154]
[1742092578918,0.1587501,135.36,135.35,31.11234154]
[1742092586219,0.1587501,135.36,135.34,7.3886]
[1742092587813,0.1587501,135.36,135.33,7.3891]
[1742092588115,23.72414154,135.35,135.32,7.3896]
[1742092588314,15.3354598,135.36,135.32,7.3896]
[1742092589013,0.1587501,135.36,135.32,41.0410097]
[1742092589415,0.1587501,135.36,135.34,15.1767097]
[1742092589822,0.1587501,135.36,135.33,15.1767097]
[1742092590036,0.1587501,135.36,135.32,33.6514097]
[1742092591028,0.1587501,135.36,135.34,7.3887]
[1742092591231,0.1587501,135.36,135.34,22.5654097]
[1742092591538,0.1587501,135.36,135.35,15.1767097]
[1742092592428,0.1587501,135.36,135.34,31.08880176]
[1742092592612,0.1587501,135.36,135.34,7.3887]
[1742092593334,0.13836172,135.35,135.34,7.3887]
[1742092595935,0.13836172,135.35,135.34,31.08880176]
[1742092597022,0.13836172,135.35,135.34,31.15180176]
[1742092599546,0.13836172,135.35,135.34,7.4517]
[1742092601447,0.13836172,135.35,135.34,0.063]
[1742092601636,23.83846348,135.35,135.34,0.063]
[1742092602845,31.22666348,135.35,135.34,0.063]
[1742092605456,23.83846348,135.35,135.34,0.063]
[1742092605836,0.13836172,135.35,135.34,23.76310176]
[1742092607490,0.13836172,135.35,135.34,31.15180176]
[1742092610177,0.13836172,135.35,135.34,7.4517]
[1742092610574,0.13836172,135.35,135.34,31.15180176]
[1742092611381,0.13836172,135.35,135.34,7.4517]
[1742092612772,0.13836172,135.35,135.34,0.063]
[1742092613391,0.28386461,135.35,135.34,0.063]
[1742092614282,0.14550289,135.35,135.34,0.063]
[1742092617493,22.70689518,135.35,135.34,0.063]
[1742092620787,22.73689518,135.35,135.34,0.063]
[1742092622287,22.73689518,135.35,135.34,15.23619229]
[1742092622288,0.17550289,135.35,135.34,15.23619229]
[1742092623381,0.17550289,135.35,135.34,22.62489229]
[1742092623804,0.17550289,135.35,135.34,24.57061543]
[1742092624007,0.17550289,135.35,135.34,24.28629229]
[1742092624385,0.17550289,135.35,135.34,32.80984623]
[1742092626204,2.89e-06,135.35,135.34,51.74381823]
[1742092626389,2.89e-06,135.35,135.34,58.22381823]
[1742092631791,2.89e-06,135.35,135.34,37.62844623]
[1742092632391,2.89e-06,135.35,135.34,31.14844623]
[1742092633530,0.16200642,135.35,135.34,31.14844623]
[1742092635334,0.16200642,135.35,135.34,0.063]
[1742092638706,0.16200642,135.35,135.34,0.063]
[1742092643395,0.16200642,135.35,135.34,7.4517]
[1742092645506,0.16200642,135.35,135.34,31.14844623]
[1742092646234,0.16200642,135.35,135.34,22.61700685]
[1742092647025,0.16200642,135.35,135.34,22.90132999]
[1742092647026,6.42e-06,135.35,135.34,22.90132999]
[1742092647609,6.42e-06,135.35,135.34,22.61700685]
[1742092648537,6.42e-06,135.35,135.34,7.4517]
[1742092650431,6.42e-06,135.35,135.34,22.61700685]
[1742092651925,6.42e-06,135.35,135.34,7.4517]
[1742092653420,0.13527406,135.35,135.34,22.61700685]
[1742092654339,0.13526764,135.35,135.34,22.61700685]
[1742092654538,0.13526764,135.35,135.34,0.063]
[1742092655218,0.13526764,135.35,135.34,7.4517]
[1742092655419,0.13526764,135.35,135.34,0.063]
[1742092657639,0.16526764,135.35,135.34,0.063]
[1742092670746,22.71877449,135.35,135.34,0.063]
[1742092670923,41.36842335,135.35,135.34,0.063]
[1742092672142,123.56842335,135.35,135.34,0.063]
[1742092673425,123.72708318,135.35,135.34,0.063]
[1742092674352,123.59181554,135.35,135.34,0.063]
[1742092674652,97.55396668,135.35,135.34,0.063]
[1742092684052,82.35865983,135.35,135.34,0.063]
[1742092684253,97.52396668,135.35,135.34,0.063]
[1742092688870,97.02396668,135.35,135.34,0.063]
[1742092689070,104.41216668,135.35,135.34,0.063]
[1742092693354,104.55613504,135.35,135.34,0.063]
[1742092694378,104.39747521,135.35,135.34,0.063]
[1742092694874,97.00927521,135.35,135.34,0.063]
[1742092695059,81.84396836,135.35,135.34,0.063]
[1742092696574,0.14396836,135.35,135.34,0.063]
[1742092701877,0.14396836,135.35,135.34,7.4517]
[1742092703882,0.14396836,135.35,135.34,0.063]
[1742092705987,15.30927521,135.35,135.34,0.063]
[1742092706879,41.34712407,135.35,135.34,0.063]
[1742092707080,47.81852407,135.35,135.34,0.063]
[1742092711883,129.66068564,135.35,135.34,0.063]
[1742092712692,130.16068564,135.35,135.34,0.063]
[1742092713495,129.79821065,135.35,135.34,0.063]
[1742092714287,129.65424229,135.35,135.34,0.063]
[1742092715468,81.83752501,135.35,135.34,0.063]
[1742092715888,97.00283186,135.35,135.34,0.063]
[1742092716583,123.04068072,135.35,135.34,0.063]
[1742092716790,123.07068072,135.35,135.34,0.063]
[1742092721876,123.21284229,135.35,135.34,0.063]
[1742092722197,125.24894229,135.35,135.34,0.063]
[1742092723295,124.74894229,135.35,135.34,0.063]
[1742092723478,125.24894229,135.35,135.34,0.063]
[1742092724385,124.74894229,135.35,135.34,0.063]
[1742092725902,43.04894229,135.35,135.34,0.063]
[1742092733387,43.18814712,135.35,135.34,0.063]
[1742092733592,41.50988555,135.35,135.34,0.063]
[1742092734389,41.37236054,135.35,135.34,0.063]
[1742092744815,41.51452211,135.35,135.34,0.063]
[1742092745513,41.37236054,135.35,135.34,0.063]
[1742092747397,15.33451168,135.35,135.34,0.063]
[1742092747830,0.16920483,135.35,135.34,0.063]
[1742092753523,0.3060979,135.35,135.34,0.063]
[1742092754296,0.16689307,135.35,135.34,0.063]
[1742092759322,0.16689307,135.35,135.34,15.51262999]
[1742092760016,0.16689307,135.35,135.34,7.73602314]
[1742092760606,0.16689307,135.35,135.34,7.4517]
[1742092761006,0.16689307,135.35,135.34,0.063]
[1742092766540,22.72039992,135.35,135.34,0.063]
[1742092768021,15.33219992,135.35,135.34,0.063]
[1742092768618,0.16689307,135.35,135.34,0.063]
[1742092770418,22.72039992,135.35,135.34,0.063]
[1742092770917,41.37004878,135.35,135.34,0.063]
[1742092773421,41.52417871,135.35,135.34,0.063]
[1742092774540,41.38728564,135.35,135.34,0.063]
[1742092777120,15.34943678,135.35,135.34,0.063]
[1742092779440,41.38728564,135.35,135.34,0.063]
[1742092781248,15.34943678,135.35,135.34,0.063]
[1742092782447,0.18412993,135.35,135.34,0.063]
[1742092782653,15.34943678,135.35,135.34,0.063]
[1742092785131,22.73763678,135.35,135.34,0.063]
[1742092785548,82.2,135.37,135.34,0.063]
[1742092785752,15.16530685,135.35,135.34,0.063]
[1742092787269,15.19530685,135.35,135.34,0.063]
[1742092791859,22.58350685,135.35,135.34,0.063]
[1742092792470,15.19530685,135.35,135.34,0.063]
[1742092793473,15.33125254,135.35,135.34,0.063]
[1742092799381,14.33125254,135.35,135.34,0.063]
[1742092799562,15.33125254,135.35,135.34,0.063]
[1742092802094,0.16594569,135.35,135.34,0.563]
[1742092803695,0.16594569,135.35,135.34,7.9517]
[1742092806692,0.16594569,135.35,135.34,23.11700685]
[1742092807299,0.16594569,135.35,135.34,7.9517]
[1742092810398,0.16594569,135.35,135.34,23.11700685]
[1742092813395,0.32246602,135.35,135.34,23.11700685]
[1742092814308,0.18652033,135.35,135.34,23.11700685]
[1742092816607,2.033e-05,135.35,135.34,48.05877885]
[1742092817904,2.033e-05,135.35,135.34,0.563]
[1742092821411,2.033e-05,135.35,135.34,23.11700685]
[1742092821709,2.033e-05,135.35,135.34,42.05097885]
[1742092822691,2.033e-05,135.35,135.34,48.05877885]
[1742092824585,2.033e-05,135.35,135.34,32.893472]
[1742092827403,2.033e-05,135.35,135.34,36.64948098]
[1742092827615,9.411e-05,135.36,135.35,15.16530685]
[1742092827820,9.411e-05,135.36,135.35,104.36275816]
[1742092828103,6.898e-05,135.38,135.37,38.933972]
[1742092828293,0.14918447,135.42,135.39,20.968572]
[1742092828497,0.14918447,135.42,135.39,116.83387885]
[1742092828808,0.14918447,135.42,135.39,122.68527885]
[1742092830886,0.14918447,135.42,135.39,128.68425309]
[1742092831619,0.14918447,135.42,135.39,122.68527885]
[1742092832935,0.14918447,135.42,135.39,100.133972]
[1742092833099,0.14918447,135.42,135.39,115.29927885]
[1742092833427,0.30395493,135.4,135.39,115.29927885]
[1742092834129,0.30395493,135.4,135.39,122.68527885]
[1742092834331,0.15538517,135.4,135.39,122.68527885]
[1742092835419,0.15538517,135.4,135.39,115.29927885]
[1742092835598,0.15538517,135.4,135.39,0.5]
[1742092838616,7.54088517,135.4,135.39,0.5]
[1742092840145,22.70619202,135.4,135.38,0.5]
[1742092841025,7.54088517,135.4,135.38,0.5]
[1742092841349,7.54088517,135.4,135.39,0.5]
[1742092841844,7.54088517,135.4,135.38,0.5]
[1742092842045,7.54088517,135.4,135.39,0.5]
[1742092842429,7.54088517,135.4,135.36,15.16530685]
[1742092842430,7.54088517,135.4,135.38,0.5]
[1742092842823,0.15538517,135.4,135.39,0.5]
[1742092843218,22.70629202,135.4,135.37,0.5]
[1742092843615,22.70629202,135.4,135.38,0.5]
[1742092844451,22.70629202,135.4,135.37,0.5]
[1742092844747,22.70629202,135.4,135.38,0.5]
[1742092845130,0.15538517,135.4,135.39,0.5]
[1742092847774,0.18538517,135.4,135.39,0.5]
[1742092848250,0.18538517,135.4,135.38,0.563]
[1742092848656,0.18538517,135.4,135.39,0.5]
[1742092850288,0.18538517,135.4,135.38,23.11480685]
[1742092850444,0.18538517,135.4,135.39,0.5]
[1742092853550,0.32057227,135.4,135.39,0.5]
[1742092854069,0.32057227,135.4,135.39,7.886]
[1742092854461,0.1651871,135.4,135.39,7.886]
[1742092855878,0.1651871,135.4,135.39,0.5]
[1742092857985,0.1651871,135.4,135.39,23.05130685]
[1742092859685,0.1651871,135.4,135.39,41.98527885]
[1742092860367,8.71e-05,135.4,135.39,41.98527885]
[1742092863699,8.71e-05,135.4,135.39,122.68527885]
[1742092869881,8.71e-05,135.4,135.39,0.5]
[1742092871110,15.16539395,135.4,135.38,0.563]
[1742092871297,15.19539395,135.4,135.38,0.563]
[1742092872110,22.58129395,135.4,135.38,0.063]
[1742092872905,15.16530685,135.39,135.38,0.063]
[1742092873504,23.01340887,135.39,135.38,0.063]
[1742092874213,30.39940887,135.39,135.38,0.063]
[1742092882600,23.01340887,135.39,135.38,0.063]
[1742092883139,15.30170887,135.39,135.38,0.063]
[1742092885634,22.68770887,135.39,135.38,0.063]
[1742092886033,15.30170887,135.39,135.38,0.063]
[1742092888301,0.13640202,135.39,135.38,0.563]
[1742092889633,0.13640202,135.39,135.38,0.063]
[1742092889836,22.68770887,135.39,135.38,0.063]
[1742092893562,22.83993084,135.39,135.38,0.063]
[1742092894361,22.70352882,135.39,135.38,0.063]
[1742092895633,41.35317768,135.39,135.38,0.063]
[1742092895833,47.81317768,135.39,135.38,0.063]
[1742092901779,48.09750082,135.39,135.38,0.0001]
[1742092902369,70.33750082,135.39,135.38,0.0001]
[1742092902684,53.81495571,135.35,135.34,0.063]
[1742092904280,35.16530685,135.35,135.34,0.063]
[1742092904460,15.16530685,135.35,135.34,0.063]
[1742092910091,22.55350685,135.35,135.34,0.063]
[1742092911175,41.48747885,135.35,135.34,0.063]
[1742092911387,41.20315571,135.35,135.34,0.063]
[1742092911780,41.48747885,135.35,135.34,0.063]
[1742092913587,41.64300936,135.35,135.34,0.063]
[1742092915304,15.32083736,135.35,135.34,0.063]
[1742092915510,0.15553051,135.35,135.34,0.063]
[1742092915713,15.32083736,135.35,135.34,0.063]
[1742092917010,22.70903736,135.35,135.34,0.063]
[1742092918690,15.32083736,135.35,135.34,0.063]
[1742092919313,22.70903736,135.35,135.34,0.063]
[1742092921614,41.35868622,135.35,135.34,0.063]
[1742092923729,22.70903736,135.35,135.34,0.063]
[1742092923933,15.32083736,135.35,135.34,0.063]
[1742092925227,15.32083736,135.35,135.34,0.563]
[1742092925228,0.15553051,135.35,135.34,0.563]
[1742092926422,0.15553051,135.35,135.34,17.27460685]
[1742092927330,0.15553051,135.35,135.34,9.498]
[1742092927516,0.15553051,135.35,135.34,24.66330685]
[1742092933465,0.2936624,135.35,135.34,24.66330685]
[1742092934372,0.13813189,135.35,135.34,24.66330685]
[1742092935246,0.13813189,135.35,135.34,9.498]
[1742092936164,0.13813189,135.35,135.34,24.66330685]
[1742092936867,0.13813189,135.35,135.34,24.94762999]
[1742092937068,0.13813189,135.35,135.34,43.59727885]
[1742092937376,0.14425302,135.36,135.34,43.59727885]
[1742092937377,0.14425302,135.36,135.35,19.433972]
[1742092937561,0.14425302,135.36,135.35,34.59927885]
[1742092938665,0.14425302,135.36,135.35,41.98747885]
[1742092939873,0.14425302,135.36,135.35,7.8882]
[1742092940059,0.14425302,135.36,135.35,0.5]
[1742092941952,0.14425302,135.36,135.35,7.8882]
[1742092942769,0.14425302,135.36,135.35,23.05350685]
[1742092944264,0.14425302,135.36,135.35,31.58184813]
[1742092945573,0.14425302,135.36,135.35,31.86617127]
[1742092948579,0.14425302,135.36,135.35,7.8882]
[1742092948983,0.14425302,135.36,135.35,0.5]
[1742092952782,0.14425302,135.36,135.35,31.58184813]
[1742092953483,0.29922192,135.36,135.35,31.58184813]
[1742092954480,0.1549689,135.36,135.35,31.58184813]
[1742092962998,0.1549689,135.36,135.35,31.86617127]
[1742092965785,0.1549689,135.36,135.35,31.92917127]
[1742092966289,0.1549689,135.36,135.35,23.39792848]
[1742092968305,0.1549689,135.36,135.35,0.563]
[1742092970402,0.1549689,135.36,135.35,7.9512]
[1742092971601,0.1549689,135.36,135.35,0.563]
[1742092973478,0.30275945,135.36,135.35,0.563]
[1742092974000,0.30275945,135.36,135.35,7.9512]
[1742092974406,0.14779055,135.36,135.35,7.9512]
[1742092975717,0.14779055,135.36,135.35,0.563]
[1742092977997,0.14779055,135.36,135.35,61.7632542]
[1742092978203,0.14779055,135.36,135.35,122.6971987]
[1742092978706,9.055e-05,135.36,135.35,122.6971987]
[1742092979015,9.055e-05,135.36,135.35,124.2722987]
[1742092980022,9.055e-05,135.36,135.35,63.62267734]
[1742092982722,9.055e-05,135.36,135.35,51.43302848]
[1742092984513,9.055e-05,135.36,135.35,70.08267734]
[1742092988926,9.055e-05,135.36,135.35,68.50757734]
[1742092989806,9.055e-05,135.36,135.35,129.1571987]
[1742092993532,0.15829151,135.36,135.35,129.1571987]
[1742092993913,0.15829151,135.36,135.35,68.50757734]
[1742092994332,0.15820096,135.36,135.35,68.50757734]
[1742092995127,0.15820096,135.36,135.35,49.57360534]
[1742093006633,0.15820096,135.36,135.35,29.57360534]
[1742093007421,0.15820096,135.36,135.35,0.563]
[1742093007831,15.3206063,135.36,135.35,0.063]
[1742093008151,30.8612063,135.36,135.35,0.063]
[1742093010337,110.16047652,135.36,135.35,0.063]
[1742093013537,49.66771605,135.36,135.35,0.063]
[1742093014038,110.60166055,135.36,135.35,0.063]
[1742093014233,110.60166055,135.36,135.34,0.063]
[1742093014549,15.16240534,135.35,135.34,0.063]
[1742093016154,22.55060534,135.35,135.34,0.063]
[1742093018226,41.48457734,135.35,135.34,0.063]
[1742093019875,18.933972,135.34,135.31,0.063]
[1742093020170,22.55220534,135.32,135.31,0.063]
[1742093022448,41.2018542,135.32,135.31,0.063]
[1742093023538,22.55220534,135.32,135.31,0.063]
[1742093028390,108.5392987,135.32,135.31,0.063]
[1742093028884,47.88967734,135.32,135.31,0.063]
[1742093029775,108.5392987,135.32,135.31,0.063]
[1742093029967,108.5392987,135.32,135.31,0.0001]
[1742093030288,18.933972,135.31,135.25,0.0001]
[1742093030473,15.16240534,135.26,135.25,0.0001]
[1742093031772,22.55550534,135.26,135.25,0.0001]
[1742093033191,41.2051542,135.26,135.25,0.0001]
[1742093033584,15.29710559,135.26,135.25,0.0001]
[1742093033786,0.13470025,135.26,135.25,0.0001]
[1742093034389,15.29710559,135.26,135.25,0.0001]
[1742093035298,0.13470025,135.26,135.25,0.0001]
[1742093035788,0.13470025,135.26,135.25,0.5001]
[1742093037487,0.13470025,135.26,135.25,7.8938]
[1742093038068,0.13470025,135.26,135.25,23.05620534]
[1742093041890,0.1443252,135.27,135.26,0.31609775]
[1742093042105,0.1443252,135.27,135.26,8.20919775]
[1742093044708,0.1443252,135.27,135.26,0.81609775]
[1742093045206,15.30673054,135.27,135.26,0.31609775]
[1742093045410,22.69933054,135.27,135.26,0.31609775]
[1742093046104,41.3489794,135.27,135.26,0.31609775]
[1742093047193,41.63330254,135.27,135.26,0.31609775]
[1742093048304,41.63330254,135.27,135.26,9.775e-05]
[1742093048985,18.933972,135.26,135.25,0.0001]
[1742093049294,94.7459987,135.26,135.25,0.0001]
[1742093050688,38.933972,135.23,135.22,0.063]
[1742093050901,18.64964886,135.19,135.17,0.063]
[1742093051203,33.8120542,135.18,135.17,0.063]
[1742093051796,41.2095542,135.18,135.17,0.063]
[1742093053716,41.34412236,135.18,135.17,0.063]
[1742093054012,41.34412236,135.18,135.12,0.063]
[1742093054013,0.28432314,135.16,135.12,0.063]
[1742093054209,33.8120542,135.13,135.12,0.063]
[1742093054507,15.16240534,135.14,135.12,0.563]
[1742093054917,15.16240534,135.13,135.12,0.563]
[1742093056412,15.16240534,135.13,135.12,0.063]
[1742093056610,114.6730987,135.13,135.12,0.063]
[1742093057000,46.62327734,135.13,135.12,0.063]
[1742093057614,54.02347734,135.13,135.12,0.063]
[1742093058114,40.2720542,135.13,135.12,0.063]
[1742093058299,48.90709971,135.13,135.12,0.063]
[1742093059917,56.30729971,135.13,135.12,0.063]
[1742093061003,48.90709971,135.13,135.12,0.063]
[1742093061320,56.30729971,135.13,135.12,0.063]